bitfinex-derivatives/quotes_ETHF0:USTF0_20241026
["timestamp","ask_amount","ask_price","bid_price","bid_amount"]
[1729961260314,0.8296,2472.1,2471.3,1.262]
[1729961260523,0.40501,2472.0,2471.9,0.405]
[1729961261722,0.40502,2471.9,2471.8,0.40501]
[1729961261920,0.40504,2471.8,2471.7,0.40503]
[1729961262615,0.8296,2472.1,2471.4,1.01271]
[1729961262821,0.40502,2471.9,2471.8,0.40501]
[1729961263121,0.8296,2472.1,2471.3,1.262]
[1729961263315,1.23459,2472.1,2472.0,0.40499]
[1729961263814,0.81409,2472.1,2472.0,4.45059]
[1729961264622,0.4091,2472.1,2471.8,0.4195]
[1729961264820,0.40502,2471.9,2471.8,0.40502]
[1729961265016,0.40504,2471.8,2471.7,0.40503]
[1729961265321,0.40505,2471.7,2471.6,0.40505]
[1729961265521,0.40505,2471.7,2471.5,1.3255]
[1729961265522,0.8291,2472.1,2471.5,1.3255]
[1729961265722,0.40501,2472.0,2471.9,0.40501]
[1729961265925,0.40502,2471.9,2471.8,0.40501]
[1729961268627,0.4091,2472.1,2471.5,1.3255]
[1729961268924,0.4091,2472.1,2472.0,0.40499]
[1729961268925,0.81409,2472.1,2472.0,0.40499]
[1729961269328,0.4091,2472.1,2472.0,0.40499]
[1729961270035,0.40497,2472.2,2471.8,0.8798]
[1729961270327,0.40497,2472.2,2472.1,0.40497]
[1729961271726,0.4472,2472.3,2471.8,0.8798]
[1729961272230,0.40497,2472.2,2472.1,0.40496]
[1729961273325,0.4472,2472.3,2471.8,1.89236]
[1729961273530,0.4097,2472.4,2472.3,0.40494]
[1729961273733,0.81463,2472.4,2472.3,0.40494]
[1729961275737,0.81464,2472.4,2472.3,0.40494]
[1729961276334,0.4147,2472.6,2472.3,4.0448]
[1729961276635,0.40493,2472.4,2472.3,0.40493]
[1729961276832,0.4147,2472.6,2472.2,0.407]
[1729961277436,0.8196,2472.6,2472.5,0.40491]
[1729961277937,0.40493,2472.5,2472.4,0.40492]
[1729961278632,0.40493,2472.5,2472.2,0.407]
[1729961278939,0.40494,2472.4,2472.3,0.40494]
[1729961279139,0.40494,2472.3,2472.2,0.81195]
[1729961279435,0.4419,2472.3,2472.0,0.906]
[1729961279636,0.84685,2472.3,2472.2,0.40496]
[1729961280438,0.8196,2472.6,2472.5,0.40491]
[1729961280631,0.40492,2472.5,2472.4,0.40492]
[1729961281238,0.84902,2472.5,2472.4,0.40492]
[1729961281438,0.4441,2472.5,2472.4,0.40492]
[1729961281835,0.84901,2472.5,2472.4,0.40492]
[1729961282037,0.4441,2472.5,2472.4,0.40492]
[1729961284843,0.4147,2472.6,2472.5,0.40491]
[1729961285048,0.81959,2472.6,2472.5,0.40491]
[1729961285641,0.4147,2472.6,2472.5,0.40491]
[1729961286248,0.40491,2472.5,2472.4,0.40492]
[1729961286539,0.4147,2472.6,2472.5,0.40491]
[1729961287947,0.4135,2472.8,2472.4,0.4242]
[1729961288244,0.40488,2472.7,2472.6,0.40488]
[1729961288443,0.81837,2472.8,2472.7,0.40488]
[1729961288643,0.40488,2472.7,2472.6,0.40488]
[1729961288841,0.81837,2472.8,2472.7,0.40488]
[1729961289244,0.4135,2472.8,2472.7,0.40488]
[1729961289441,0.40475,2473.5,2473.4,0.40476]
[1729961289645,0.40477,2473.4,2473.3,0.40477]
[1729961290249,0.4105,2473.5,2473.3,0.40477]
[1729961290645,0.40476,2473.4,2473.3,0.40477]
[1729961290847,0.4105,2473.5,2473.2,0.4143]
[1729961291042,0.4105,2473.5,2473.3,0.40477]
[1729961291248,0.40476,2473.4,2473.3,0.40476]
[1729961291743,1.01166,2474.1,2473.3,4.0432]
[1729961291945,0.8517,2474.0,2473.2,1.42628]
[1729961292143,0.4047,2473.8,2473.2,1.42628]
[1729961292343,0.40469,2473.9,2473.7,0.40471]
[1729961292644,0.8517,2474.0,2473.4,0.896]
[1729961292845,0.4146,2473.9,2473.4,0.896]
[1729961293042,0.40471,2473.7,2473.4,0.896]
[1729961293241,0.40468,2473.9,2473.7,0.40471]
[1729961293642,0.40471,2473.8,2473.6,0.40472]
[1729961293843,0.4047,2473.8,2473.6,0.40472]
[1729961294346,0.40466,2474.1,2473.9,0.40468]
[1729961294547,0.40466,2474.1,2473.4,1.9079]
[1729961294849,1.2594,2474.4,2473.8,0.40468]
[1729961295051,0.40467,2474.0,2473.8,0.40468]
[1729961295350,2.27092,2474.4,2473.4,1.9079]
[1729961295539,0.40473,2473.6,2473.5,0.40474]
[1729961295744,1.01166,2474.1,2473.6,0.40471]
[1729961295745,0.4047,2473.8,2473.6,0.40471]
[1729961295948,0.40471,2473.7,2473.6,0.40471]
[1729961296451,0.436,2473.9,2473.3,0.896]
[1729961296652,0.40476,2473.5,2473.3,1.30077]
[1729961297151,0.81573,2473.6,2473.4,0.40475]
[1729961297450,0.81573,2473.6,2473.3,0.896]
[1729961297647,0.40476,2473.5,2473.3,0.896]
[1729961297849,0.40476,2473.5,2473.4,0.40476]
[1729961298145,0.411,2473.6,2473.4,0.40476]
[1729961298353,0.81573,2473.6,2473.5,0.40475]
[1729961300354,0.411,2473.6,2473.5,0.40475]
[1729961301051,0.411,2473.6,2473.3,0.896]
[1729961301256,0.40472,2473.7,2473.6,0.40472]
[1729961302156,0.4047,2473.8,2473.7,0.40471]
[1729961302557,1.26069,2473.9,2473.4,1.01191]
[1729961302754,1.26069,2473.9,2473.8,0.4047]
[1729961303453,0.856,2473.9,2473.4,1.01191]
[1729961303658,0.4047,2473.8,2473.7,0.4047]
[1729961303858,1.26069,2473.9,2473.8,0.4047]
[1729961304059,0.4047,2473.8,2473.7,0.4047]
[1729961304759,1.26069,2473.9,2473.5,0.40475]
[1729961304955,1.26069,2473.9,2473.7,0.4047]
[1729961305157,0.856,2473.9,2473.6,0.4328]
[1729961305363,0.4047,2473.8,2473.7,0.82371]
[1729961305564,0.40476,2473.5,2473.4,0.40476]
[1729961306160,1.86773,2473.9,2473.2,0.8518]
[1729961306458,0.856,2473.9,2473.2,1.86378]
[1729961306654,0.40473,2473.7,2473.6,0.40472]
[1729961307263,0.40473,2473.6,2473.5,0.40473]
[1729961307561,0.40472,2473.7,2473.6,0.40472]
[1729961308259,0.856,2473.9,2473.2,0.8518]
[1729961308460,0.40472,2473.7,2473.6,0.40472]
[1729961308762,0.4047,2473.8,2473.7,0.4047]
[1729961309167,0.82469,2473.9,2473.8,0.4047]
[1729961309358,0.40467,2474.0,2473.9,0.40467]
[1729961309562,0.4154,2474.3,2473.9,0.4319]
[1729961309967,0.40464,2474.2,2474.1,0.40464]
[1729961310166,0.82003,2474.3,2474.2,0.40463]
[1729961310572,0.40464,2474.2,2474.1,0.40464]
[1729961310768,0.82002,2474.3,2474.2,0.40463]
[1729961310963,0.4154,2474.3,2474.2,0.40463]
[1729961311174,0.812,2474.4,2474.3,0.40461]
[1729961311567,0.40462,2474.3,2474.2,0.40462]
[1729961311869,0.40462,2474.3,2474.2,0.40463]
[1729961312059,0.81201,2474.4,2474.3,0.40461]
[1729961312263,0.4155,2474.6,2474.2,0.40462]
[1729961312459,1.01121,2475.2,2474.1,1.90761]
[1729961312664,0.4155,2475.1,2474.2,0.4397]
[1729961312867,0.4155,2475.1,2474.8,0.40453]
[1729961313071,0.40453,2474.8,2474.7,1.29853]
[1729961313258,0.4155,2475.1,2474.3,0.8846]
[1729961313464,1.01126,2475.0,2474.4,0.894]
[1729961313666,0.4498,2475.0,2474.4,0.894]
[1729961313869,1.0113,2474.9,2474.4,1.29859]
[1729961314064,1.0113,2474.9,2474.3,0.8846]
[1729961314267,1.0113,2474.9,2474.3,1.7786]
[1729961314569,0.4046,2474.4,2474.3,0.8846]
[1729961315467,0.4046,2474.4,2474.3,1.28921]
[1729961315869,0.40459,2474.5,2474.3,1.28921]
[1729961316370,0.4046,2474.4,2474.3,1.28921]
[1729961316673,0.8898,2474.7,2474.3,0.8846]
[1729961316970,0.4046,2474.4,2474.3,0.8846]
[1729961317266,0.8898,2474.7,2474.3,0.8846]
[1729961317467,1.01114,2475.3,2474.4,4.0416]
[1729961317767,0.40449,2475.1,2474.5,1.01146]
[1729961317964,0.4262,2475.2,2474.7,1.01138]
[1729961318161,0.83068,2475.2,2475.1,0.40448]
[1729961318473,0.4262,2475.2,2474.8,1.7677]
[1729961318671,0.83067,2475.2,2474.9,0.40452]
[1729961318871,0.40449,2475.1,2474.8,1.7677]
[1729961319270,0.40449,2475.1,2474.3,1.01151]
[1729961319271,0.4262,2475.2,2474.2,1.01157]
[1729961319571,0.83492,2475.0,2474.8,0.40453]
[1729961319772,0.83491,2475.0,2474.9,0.40452]
[1729961319964,0.40453,2474.9,2474.7,0.40454]
[1729961320165,0.40453,2474.9,2474.8,0.40453]
[1729961320366,0.4304,2475.0,2474.8,0.40453]
[1729961320669,0.4262,2475.2,2474.9,0.40452]
[1729961320870,0.4045,2475.1,2474.9,0.40451]
[1729961321069,0.4304,2475.4,2474.6,0.893]
[1729961321070,0.40445,2475.4,2475.2,0.40446]
[1729961321268,1.45246,2475.8,2475.1,0.893]
[1729961321479,0.40444,2475.4,2475.2,0.82695]
[1729961321768,0.4381,2475.7,2475.2,0.4225]
[1729961321965,0.40435,2475.9,2475.4,1.41552]
[1729961322168,0.4381,2476.3,2475.5,0.429]
[1729961322469,0.40438,2475.8,2475.6,1.29739]
[1729961323166,0.4415,2476.1,2475.6,4.9322]
[1729961323471,0.40438,2475.8,2475.6,1.2974]
[1729961323671,0.4415,2476.1,2475.6,0.893]
[1729961324065,0.40435,2475.9,2475.7,0.40438]
[1729961324265,0.4415,2476.1,2475.6,0.893]
[1729961324468,0.40439,2475.7,2475.6,0.893]
[1729961324667,0.40438,2475.8,2475.6,1.2974]
[1729961324973,0.4415,2476.1,2475.6,0.893]
[1729961325273,0.40436,2475.9,2475.7,0.84737]
[1729961325468,0.40435,2476.0,2475.8,0.40437]
[1729961325669,0.40435,2475.9,2475.7,0.84738]
[1729961326173,0.40437,2475.8,2475.7,0.443]
[1729961326567,0.01013169,2476.4,2475.7,4.4822]
[1729961326767,0.01013169,2476.4,2475.7,0.443]
[1729961326971,0.40435,2476.0,2475.7,0.443]
[1729961327170,0.40435,2476.0,2475.7,1.336]
[1729961327370,0.40435,2476.0,2475.8,0.40436]
[1729961327971,0.40435,2476.0,2475.9,0.40435]
[1729961328170,0.449,2476.3,2475.7,1.336]
[1729961328373,0.40435,2476.0,2475.8,0.40436]
[1729961328573,0.40435,2475.9,2475.8,0.40436]
[1729961328975,1.45974,2476.3,2475.8,0.40436]
[1729961329278,0.449,2476.3,2475.8,0.40436]
[1729961329483,0.40437,2475.8,2475.7,0.443]
[1729961329779,0.4499,2476.2,2475.6,0.893]
[1729961329973,0.40438,2475.8,2475.6,1.7557]
[1729961330179,0.4357,2476.1,2475.6,1.34]
[1729961330380,0.40438,2475.8,2475.7,0.40437]
[1729961330580,0.4357,2476.1,2475.7,0.40437]
[1729961330781,0.40436,2475.9,2475.7,0.40437]
[1729961330983,0.40437,2475.8,2475.7,0.40438]
[1729961331378,0.40437,2475.8,2475.6,0.40439]
[1729961331583,0.40437,2475.8,2475.7,0.40439]
[1729961331784,0.84003,2476.1,2475.9,0.40434]
[1729961331979,0.84003,2476.1,2475.5,1.44003]
[1729961331980,0.4357,2476.1,2475.5,0.429]
[1729961332188,0.40433,2476.1,2475.6,1.01101]
[1729961332477,0.40434,2476.0,2475.7,0.4096]
[1729961332683,0.40433,2476.1,2476.0,0.40433]
[1729961332883,0.40431,2476.2,2476.1,0.40432]
[1729961333081,0.449,2476.3,2476.2,0.4043]
[1729961333676,0.85329,2476.3,2476.2,0.4043]
[1729961334185,0.449,2476.3,2476.2,0.4043]
[1729961334385,0.85329,2476.3,2476.2,0.4043]
[1729961334588,0.449,2476.3,2475.8,0.893]
[1729961334783,0.40431,2476.2,2475.8,0.893]
[1729961334984,0.449,2476.3,2475.9,0.4349]
[1729961335184,0.40433,2476.1,2476.0,0.40434]
[1729961335380,0.449,2476.3,2475.9,1.27154]
[1729961335580,0.4043,2476.2,2475.9,1.27154]
[1729961335788,0.40433,2476.1,2476.0,0.40434]
[1729961336391,0.8769,2476.3,2475.9,0.4349]
[1729961336593,0.40431,2476.2,2476.1,0.40432]
[1729961336892,0.40432,2476.1,2476.0,0.40433]
[1729961337097,0.40431,2476.2,2476.0,0.40433]
[1729961337292,0.40432,2476.1,2476.0,0.40433]
[1729961337488,0.8769,2476.3,2476.0,0.40433]
[1729961337887,0.40432,2476.1,2475.7,0.893]
[1729961338093,0.40432,2476.1,2476.0,0.40434]
[1729961338396,0.41,2476.2,2476.0,0.40434]
[1729961338792,0.40432,2476.1,2476.0,0.40434]
[1729961339089,0.8533,2476.3,2476.1,0.40431]
[1729961339291,0.8533,2476.3,2476.2,0.4043]
[1729961340293,0.449,2476.3,2476.1,0.40431]
[1729961340489,1.45974,2476.3,2475.6,0.8481]
[1729961340685,0.4347,2476.2,2475.6,0.8481]
[1729961340987,0.4044,2475.6,2475.5,0.429]
[1729961341187,0.40438,2475.8,2475.5,0.429]
[1729961341393,0.4103,2475.9,2475.5,0.40441]
[1729961341594,0.40439,2475.7,2475.5,0.40441]
[1729961341794,0.4397,2475.8,2475.5,0.40441]
[1729961341994,0.4044,2475.7,2475.5,0.40441]
[1729961342194,0.4044,2475.6,2475.5,0.40441]
[1729961342390,0.40439,2475.7,2475.5,0.40441]
[1729961342697,0.4044,2475.6,2475.5,0.40441]
[1729961342893,0.40444,2475.4,2475.3,0.40445]
[1729961343091,0.40441,2475.6,2475.4,0.40442]
[1729961343398,0.40441,2475.6,2475.2,0.91]
[1729961343898,1.01097,2475.7,2475.1,0.4082]
[1729961344098,1.01109,2475.4,2474.8,0.40452]
[1729961344400,0.4458,2475.3,2474.8,0.40453]
[1729961344694,0.4458,2475.3,2474.7,1.7914]
[1729961344896,0.4458,2475.3,2475.1,0.40448]
[1729961344897,0.85027,2475.3,2475.1,0.40448]
[1729961345097,0.4458,2475.3,2474.7,0.8814]
[1729961345296,0.4045,2475.0,2474.8,0.40452]
[1729961345602,0.4458,2475.3,2474.7,0.8814]
[1729961345996,0.40452,2474.9,2474.8,0.40453]
[1729961346197,0.4458,2475.3,2474.8,0.40453]
[1729961346499,1.01086,2476.0,2475.0,1.01123]
[1729961346701,0.40437,2475.8,2475.4,0.40443]
[1729961346900,0.40441,2475.6,2475.5,0.8963]
[1729961347400,0.40444,2475.4,2475.1,1.3497]
[1729961347699,0.40447,2475.2,2474.9,0.91]
[1729961347903,1.41536,2475.7,2475.1,0.40448]
[1729961348095,0.40447,2475.3,2475.1,0.40448]
[1729961348403,0.40448,2475.1,2475.0,0.8794]
[1729961349301,0.40446,2475.3,2475.0,0.8794]
[1729961349495,0.40446,2475.3,2475.1,0.40447]
[1729961350001,0.4224,2475.5,2475.1,0.40447]
[1729961350399,0.40447,2475.2,2475.1,0.40447]
[1729961350603,0.40448,2475.1,2475.0,1.2839]
[1729961350999,1.43347,2475.5,2475.0,5.3239]
[1729961351304,0.40448,2475.1,2475.0,0.8794]
[1729961351799,1.43347,2475.5,2474.8,1.31452]
[1729961352000,0.40452,2474.9,2474.8,0.91]
[1729961352205,0.4094,2475.3,2475.0,0.4045]
[1729961352405,0.4045,2475.1,2474.9,0.40451]
[1729961352704,0.4045,2475.0,2474.9,0.40451]
[1729961352905,0.40453,2474.9,2474.7,0.40455]
[1729961353105,0.40453,2474.9,2474.7,0.40454]
[1729961353303,0.40453,2474.9,2474.6,1.7568]
[1729961353502,0.40454,2474.8,2474.7,0.40454]
[1729961353703,0.8748,2475.1,2474.7,0.40454]
[1729961354203,0.40453,2474.8,2474.7,0.40454]
[1729961354404,0.8748,2475.1,2474.7,0.40454]
[1729961354604,0.40453,2474.9,2474.7,0.40454]
[1729961354906,0.40453,2474.8,2474.7,0.40454]
[1729961355104,0.8748,2475.1,2474.4,0.40459]
[1729961355410,0.4046,2474.4,2474.2,0.40462]
[1729961355602,0.4197,2474.7,2473.9,2.35909]
[1729961355904,0.40461,2474.4,2474.2,0.40462]
[1729961356100,0.40464,2474.2,2474.0,0.40466]
[1729961356405,1.84073,2474.6,2473.9,1.3474]
[1729961356597,0.40461,2474.3,2474.2,0.40463]
[1729961356793,0.8293,2474.6,2473.9,1.3474]
[1729961356794,0.40463,2474.2,2474.0,0.40465]
[1729961357400,0.40462,2474.3,2473.9,1.3474]
[1729961357712,0.8293,2474.6,2474.2,0.40463]
[1729961358105,0.40461,2474.4,2474.2,0.40463]
[1729961358603,0.8293,2474.6,2473.9,1.3474]
[1729961358802,0.8293,2474.6,2474.1,0.40464]
[1729961359000,0.40458,2474.5,2474.1,0.40464]
[1729961359199,0.40463,2474.3,2474.1,0.40464]
[1729961359496,0.40464,2474.2,2474.0,0.40465]
[1729961359701,1.01149,2474.5,2473.9,0.4374]
[1729961359904,0.40464,2474.2,2474.0,0.40465]
[1729961360807,0.40465,2474.1,2473.9,0.84207]
[1729961360999,0.40465,2474.1,2474.0,0.40466]
[1729961361200,0.40465,2474.1,2474.0,4.44626]
[1729961361405,1.01146,2474.5,2474.0,4.44626]
[1729961361604,0.8293,2474.6,2474.0,1.01167]
[1729961361808,0.40453,2474.8,2474.5,0.40457]
[1729961362008,0.40456,2474.7,2474.5,0.40457]
[1729961362211,0.40457,2474.6,2474.5,0.40457]
[1729961362505,0.40454,2474.8,2474.6,0.40456]
[1729961363106,0.40454,2474.8,2474.7,0.40455]
[1729961363310,0.40454,2474.8,2474.6,0.40456]
[1729961363501,0.40454,2474.8,2474.7,0.40455]
[1729961363701,0.40454,2474.8,2474.6,0.40456]
[1729961364409,0.8639,2474.9,2474.4,0.4343]
[1729961364608,0.40453,2474.8,2474.7,0.40454]
[1729961364809,0.40453,2474.8,2474.6,0.40456]
[1729961365006,0.40455,2474.7,2474.6,0.40456]
[1729961365211,0.40455,2474.8,2474.6,0.40456]
[1729961365512,0.40454,2474.8,2474.6,0.40456]
[1729961365808,0.40455,2474.7,2474.5,0.40457]
[1729961366412,0.8639,2474.9,2474.4,0.4343]
[1729961366710,0.40457,2474.6,2474.5,0.40457]
[1729961366913,0.40458,2474.5,2474.4,0.4343]
[1729961367103,1.87521,2474.9,2474.2,0.4336]
[1729961367104,1.01135,2474.8,2474.2,1.3436]
[1729961367506,0.40461,2474.4,2474.2,1.3436]
[1729961367707,1.87521,2474.9,2474.2,1.74821]
[1729961368006,0.40461,2474.3,2474.2,1.3436]
[1729961368511,0.40461,2474.3,2474.2,0.4336]
[1729961369207,1.43625,2474.6,2473.7,0.8253]
[1729961369208,0.4248,2474.6,2473.7,0.8253]
[1729961369410,0.4248,2474.6,2473.8,1.3362]
[1729961369712,0.40465,2474.1,2473.9,0.40467]
[1729961370211,0.8965,2474.4,2473.9,0.40467]
[1729961370708,1.90802,2474.4,2473.9,0.40467]
[1729961371012,0.40466,2474.0,2473.9,0.40467]
[1729961371604,1.90802,2474.4,2473.9,0.40467]
[1729961371811,0.40466,2474.0,2473.9,0.40467]
[1729961372405,1.90802,2474.4,2473.9,0.40467]
[1729961372611,0.40467,2474.0,2473.9,0.40468]
[1729961372811,0.40467,2474.0,2473.8,0.83089]
[1729961373012,1.90802,2474.4,2473.8,0.83089]
[1729961373211,0.40468,2473.9,2473.8,0.83089]
[1729961373616,1.01155,2474.3,2473.8,0.83089]
[1729961373810,0.40467,2474.0,2473.8,0.83089]
[1729961374111,0.8965,2474.4,2473.7,0.4099]
[1729961374315,1.01161,2474.2,2473.7,0.81461]
[1729961374518,0.40469,2473.9,2473.7,0.81461]
[1729961374718,0.4047,2473.8,2473.7,0.4099]
[1729961375417,0.4047,2473.8,2473.7,0.81461]
[1729961376618,0.4047,2473.8,2473.7,0.4099]
[1729961376922,0.40462,2474.3,2473.8,1.01175]
[1729961377117,0.40463,2474.2,2474.1,0.40464]
[1729961377820,0.4457,2474.4,2473.7,0.4099]
[1729961378123,0.4457,2474.4,2474.1,0.40464]
[1729961378313,0.4457,2474.4,2473.8,0.4244]
[1729961378619,0.40463,2474.2,2474.1,0.40463]
[1729961379018,0.40463,2474.3,2474.2,0.40463]
[1729961379214,0.40463,2474.3,2473.8,1.43613]
[1729961379215,0.4457,2474.4,2473.8,1.43613]
[1729961379415,0.40463,2474.3,2474.2,0.40463]
[1729961379624,0.40464,2474.2,2474.1,0.40463]
[1729961380720,4.0416,2474.2,2473.7,0.4099]
[1729961380923,0.40469,2473.9,2473.8,0.40469]
[1729961382317,0.4047,2473.8,2473.7,0.81461]
[1729961382522,0.40469,2473.9,2473.7,0.8146]
[1729961383027,0.45,2474.1,2473.7,0.8146]
[1729961383327,0.40468,2473.9,2473.8,0.40469]
[1729961383625,0.40468,2473.9,2473.7,0.4099]
[1729961383826,0.40468,2473.9,2473.7,0.8146]
[1729961385323,0.4047,2473.8,2473.7,0.8146]
[1729961385725,0.45,2474.1,2473.7,0.4099]
[1729961385922,0.40469,2473.9,2473.8,0.40469]
[1729961387119,0.45,2474.1,2473.7,0.81461]
[1729961387315,0.40469,2473.9,2473.7,0.81461]
[1729961387621,0.40469,2473.9,2473.8,0.4047]
[1729961387919,0.45,2474.1,2473.7,0.4099]
[1729961388119,0.4047,2473.8,2473.7,0.81461]
[1729961389124,0.4047,2473.8,2473.7,0.4099]
[1729961389322,0.4423,2474.0,2473.5,0.4069]
[1729961389522,0.4412,2473.7,2473.6,0.40472]
[1729961390027,0.84593,2473.7,2473.6,0.40473]
[1729961390228,0.84593,2473.7,2473.5,0.4069]
[1729961390229,0.40473,2473.6,2473.5,0.81164]
[1729961391326,0.4412,2473.7,2473.5,0.81164]
[1729961391526,0.84592,2473.7,2473.5,0.81164]
[1729961392130,0.40474,2473.6,2473.4,0.83885]
[1729961392321,0.40474,2473.6,2473.4,0.4341]
[1729961392523,0.40475,2473.5,2473.4,0.83885]
[1729961393127,0.40476,2473.4,2473.3,1.75357]
[1729961393527,0.40476,2473.4,2473.3,5.79677]
[1729961393727,0.4412,2473.7,2473.3,4.477]
[1729961393928,0.4412,2473.7,2473.4,0.40476]
[1729961394128,0.40474,2473.6,2473.5,0.40475]
[1729961394328,0.4412,2473.7,2473.3,0.4338]
[1729961394627,0.40475,2473.5,2473.4,0.40476]
[1729961396128,0.40475,2473.5,2473.3,0.4338]
[1729961396326,0.40473,2473.6,2473.4,0.40475]
[1729961396526,1.46231,2473.9,2473.6,0.40473]
[1729961396527,0.4506,2473.9,2473.6,0.40473]
[1729961396726,0.4506,2473.9,2473.5,0.4087]
[1729961396926,0.85529,2473.9,2473.8,0.4047]
[1729961397430,0.4047,2473.8,2473.7,0.40471]
[1729961397619,0.85529,2473.9,2473.8,0.4047]
[1729961397822,0.85529,2473.9,2473.7,0.40471]
[1729961398022,0.85529,2473.9,2473.5,0.4087]
[1729961398225,0.4506,2473.9,2473.8,0.4047]
[1729961398632,0.85528,2473.9,2473.8,0.4047]
[1729961399127,0.4506,2473.9,2473.5,0.4087]
[1729961399328,0.4047,2473.8,2473.5,0.4087]
[1729961399521,0.4047,2473.8,2473.6,0.40472]
[1729961399721,0.4047,2473.8,2473.5,0.4087]
[1729961399926,0.4506,2473.9,2473.7,0.4047]
[1729961400126,0.4506,2473.9,2473.8,0.4047]
[1729961400731,0.85528,2473.9,2473.8,0.4047]
[1729961400927,0.4506,2473.9,2473.8,0.4047]
[1729961401731,0.915,2474.9,2473.8,4.0424]
[1729961401933,0.40464,2474.2,2474.1,0.40464]
[1729961402333,0.40461,2474.3,2474.0,0.4291]
[1729961402527,0.40461,2474.3,2474.2,0.40463]
[1729961402733,0.4238,2474.4,2474.0,0.4291]
[1729961402734,0.40465,2474.2,2474.1,0.40464]
[1729961402923,0.82665,2474.2,2474.1,0.40464]
[1729961403636,0.422,2474.2,2474.1,0.40464]
[1729961404130,0.82663,2474.2,2474.1,0.40464]
[1729961404735,0.422,2474.2,2474.1,0.40464]
[1729961405836,0.82663,2474.2,2474.1,0.40464]
[1729961406238,0.422,2474.2,2474.1,0.40464]
[1729961406440,0.82663,2474.2,2474.1,0.40464]
[1729961406639,0.40465,2474.1,2474.0,0.83375]
[1729961407341,0.82664,2474.2,2474.1,0.40465]
[1729961407640,0.422,2474.2,2474.1,0.40465]
[1729961408438,0.82663,2474.2,2474.1,0.40465]
[1729961409139,0.4238,2474.4,2474.0,0.4291]
[1729961409337,0.40462,2474.3,2474.2,0.40462]
[1729961410937,0.40465,2474.2,2474.1,0.40464]
[1729961411137,0.40465,2474.1,2474.0,0.83375]
[1729961411441,0.4319,2474.1,2473.9,0.4241]
[1729961411636,0.40468,2473.9,2473.8,1.30569]
[1729961412038,0.40477,2473.4,2472.9,1.01211]
[1729961412244,0.40477,2473.4,2473.3,0.40477]
[1729961412444,0.40478,2473.3,2473.2,0.4088]
[1729961412841,1.44511,2473.7,2473.2,0.4088]
[1729961413137,0.40477,2473.4,2473.2,0.81359]
[1729961413343,0.40475,2473.5,2473.2,0.4088]
[1729961413542,0.40475,2473.5,2473.3,0.40476]
[1729961414248,0.4333,2473.7,2473.2,0.4088]
[1729961414441,0.40476,2473.4,2473.2,0.81358]
[1729961415543,0.40476,2473.4,2473.2,0.4088]
[1729961415747,0.40476,2473.4,2473.2,0.81359]
[1729961416043,0.40478,2473.3,2473.2,0.4088]
[1729961416546,1.44511,2473.7,2473.0,0.8228]
[1729961416547,0.40481,2473.2,2473.0,1.22762]
[1729961416847,0.4333,2473.7,2473.0,0.8228]
[1729961417145,0.40477,2473.4,2473.2,0.40479]
[1729961417346,0.40478,2473.3,2473.2,0.40479]
[1729961417750,0.4333,2473.7,2473.0,0.8228]
[1729961417958,0.40475,2473.5,2473.3,0.40476]
[1729961418257,0.40475,2473.5,2473.0,1.83486]
[1729961418556,0.40474,2473.6,2473.4,0.40476]
[1729961418757,0.4333,2473.7,2473.0,1.83486]
[1729961418957,0.40475,2473.5,2473.0,1.83486]
[1729961419161,0.40475,2473.5,2473.4,0.40476]
[1729961419360,0.4333,2473.7,2473.0,1.7238]
[1729961419557,0.40471,2473.7,2473.5,0.40473]
[1729961419757,0.4125,2473.8,2473.0,1.3148]
[1729961419955,0.40476,2473.5,2473.2,0.409]
[1729961420253,0.40476,2473.5,2473.3,0.40477]
[1729961420759,0.40476,2473.5,2473.4,0.40476]
[1729961421058,0.4316,2473.6,2473.2,0.409]
[1729961421260,0.40475,2473.5,2473.3,0.40477]
[1729961421555,0.83633,2473.6,2473.3,0.40478]
[1729961421751,0.4316,2473.6,2473.2,0.409]
[1729961421956,0.4316,2473.6,2473.2,0.81378]
[1729961422154,0.40478,2473.3,2473.2,0.81378]
[1729961422659,0.40477,2473.4,2473.2,0.81378]
[1729961423062,0.40478,2473.3,2473.2,0.409]
[1729961423363,0.4316,2473.6,2473.2,0.409]
[1729961423662,0.40477,2473.4,2473.3,0.40478]
[1729961423962,0.4316,2473.6,2473.2,0.409]
[1729961424161,0.40475,2473.5,2473.2,0.409]
[1729961424554,0.40475,2473.5,2473.4,0.40476]
[1729961425359,0.4316,2473.6,2473.2,0.409]
[1729961425560,0.40475,2473.5,2473.2,0.409]
[1729961425765,0.40475,2473.5,2473.4,0.40476]
[1729961427766,0.4316,2473.6,2473.5,0.40475]
[1729961427965,0.83633,2473.6,2473.2,0.409]
[1729961428264,0.40475,2473.5,2473.4,0.40475]
[1729961429864,0.4316,2473.6,2473.2,0.409]
[1729961430068,0.83634,2473.6,2473.5,0.40475]
[1729961431966,0.4316,2473.6,2473.2,0.409]
[1729961432265,0.40476,2473.5,2473.4,0.40475]
[1729961433067,0.4316,2473.6,2473.2,0.409]
[1729961433364,0.40477,2473.4,2473.3,0.40477]
[1729961433869,0.4316,2473.6,2473.2,0.409]
[1729961434165,0.40477,2473.4,2473.3,0.40477]